[Event "Early-Titled-Tuesday-Blitz-October-10-2023"]
[Site "Chess.com"]
[Date "2023.10.10"]
[Round "1"]
[White "Druid24"]
[Black "AsaHoffmann"]
[Result "1-0"]
[WhiteElo "2708"]
[BlackElo "2399"]
[TimeControl "180+1"]
[EndTime "8:06:45 PDT"]
[Termination "Druid24 won by resignation"]

1. e4 {[%clk 0:03:00.9]} 1... d6 {[%clk 0:02:57.8]} 2. d4 {[%clk 0:03:00.5]}
2... Nf6 {[%clk 0:02:53.8]} 3. Nc3 {[%clk 0:03:00.8]} 3... c6 {[%clk 0:02:53.7]}
4. Nf3 {[%clk 0:02:58.7]} 4... Bg4 {[%clk 0:02:53]} 5. h3 {[%clk 0:02:57.5]}
5... Bh5 {[%clk 0:02:52.8]} 6. Be2 {[%clk 0:02:56.3]} 6... e6 {[%clk 0:02:52.8]}
7. O-O {[%clk 0:02:55.8]} 7... d5 {[%clk 0:02:52.7]} 8. e5 {[%clk 0:02:54.4]}
8... Nfd7 {[%clk 0:02:52.5]} 9. Be3 {[%clk 0:02:47.2]} 9... c5 {[%clk
0:02:51.4]} 10. Nb5 {[%clk 0:02:39.5]} 10... cxd4 {[%clk 0:02:49.6]} 11. Nbxd4
{[%clk 0:02:24.2]} 11... Nc6 {[%clk 0:02:46.2]} 12. c4 {[%clk 0:02:19.8]} 12...
Bxf3 {[%clk 0:02:40.4]} 13. Nxf3 {[%clk 0:02:01]} 13... dxc4 {[%clk 0:02:28.9]}
14. Bxc4 {[%clk 0:01:52.8]} 14... Ndxe5 {[%clk 0:02:21.2]} 15. Nxe5 {[%clk
0:01:46.2]} 15... Nxe5 {[%clk 0:02:20.9]} 16. Qa4+ {[%clk 0:01:42.9]} 16... Nc6
{[%clk 0:02:17.9]} 17. Bb5 {[%clk 0:01:36.4]} 17... Rc8 {[%clk 0:02:10.6]} 18.
Rfd1 {[%clk 0:01:32.1]} 18... Qc7 {[%clk 0:02:00.8]} 19. Qxa7 {[%clk 0:00:57.5]}
19... Be7 {[%clk 0:01:55]} 20. Qb6 {[%clk 0:00:46.3]} 20... Qxb6 {[%clk
0:01:48.1]} 21. Bxb6 {[%clk 0:00:45.7]} 21... O-O {[%clk 0:01:47.3]} 22. Rd7
{[%clk 0:00:45.1]} 22... Bf6 {[%clk 0:01:47]} 23. Rb1 {[%clk 0:00:35.4]} 23...
Rb8 {[%clk 0:01:29.6]} 24. a4 {[%clk 0:00:32.4]} 24... Rfc8 {[%clk 0:01:09.7]}
25. a5 {[%clk 0:00:30.7]} 25... Bd8 {[%clk 0:00:57.5]} 26. Bxc6 {[%clk
0:00:18.9]} 26... bxc6 {[%clk 0:00:52.5]} 27. Bxd8 {[%clk 0:00:17.4]} 27... Rxd8
{[%clk 0:00:52.5]} 28. Rxd8+ {[%clk 0:00:18.3]} 28... Rxd8 {[%clk 0:00:52.2]}
29. Rc1 {[%clk 0:00:19]} 29... Kf8 {[%clk 0:00:44.6]} 30. Rxc6 {[%clk
0:00:18.2]} 30... Rd1+ {[%clk 0:00:42.8]} 31. Kh2 {[%clk 0:00:17.9]} 31... Rb1
{[%clk 0:00:41.7]} 32. a6 {[%clk 0:00:17]} 32... Ra1 {[%clk 0:00:39.1]} 33. b4
{[%clk 0:00:16.6]} 33... Ke7 {[%clk 0:00:37.9]} 34. b5 {[%clk 0:00:16.7]} 34...
Kd7 {[%clk 0:00:38.1]} 35. Rb6 {[%clk 0:00:16.4]} 35... Kc7 {[%clk 0:00:38.1]}
36. Rb7+ {[%clk 0:00:17.3]} 36... Kc8 {[%clk 0:00:38.1]} 37. Rxf7 {[%clk
0:00:16.9]} 37... Ra5 {[%clk 0:00:37.1]} 38. a7 {[%clk 0:00:16.1]} 1-0

[Event "Early-Titled-Tuesday-Blitz-October-10-2023"]
[Site "Chess.com"]
[Date "2023.10.10"]
[Round "1"]
[White "chessculator16"]
[Black "Sanyura"]
[Result "1/2-1/2"]
[WhiteElo "2302"]
[BlackElo "2598"]
[TimeControl "180+1"]
[EndTime "8:06:45 PDT"]
[Termination "Game drawn - insufficient material"]

1. d4 {[%clk 0:02:58.5]} 1... Nf6 {[%clk 0:02:59.1]} 2. c4 {[%clk 0:02:59.1]}
2... g6 {[%clk 0:03:00]} 3. Nc3 {[%clk 0:02:59.1]} 3... Bg7 {[%clk 0:03:00.7]}
4. e4 {[%clk 0:02:58.5]} 4... d6 {[%clk 0:03:01.4]} 5. Be2 {[%clk 0:02:58.5]}
5... O-O {[%clk 0:03:02.1]} 6. Nf3 {[%clk 0:02:58.6]} 6... e5 {[%clk 0:03:02.6]}
7. dxe5 {[%clk 0:02:58.5]} 7... dxe5 {[%clk 0:03:02.8]} 8. Qxd8 {[%clk
0:02:58.9]} 8... Rxd8 {[%clk 0:03:02.5]} 9. Bg5 {[%clk 0:02:59.5]} 9... c6
{[%clk 0:03:02.8]} 10. Nxe5 {[%clk 0:02:58]} 10... Re8 {[%clk 0:03:02.1]} 11.
O-O-O {[%clk 0:02:56.3]} 11... h6 {[%clk 0:02:56.6]} 12. Bf4 {[%clk 0:02:48.3]}
12... Na6 {[%clk 0:02:29.3]} 13. Rhe1 {[%clk 0:02:43.4]} 13... Nxe4 {[%clk
0:02:08.4]} 14. Nxe4 {[%clk 0:02:42.3]} 14... Bxe5 {[%clk 0:02:09]} 15. Bxe5
{[%clk 0:02:40]} 15... Rxe5 {[%clk 0:02:09.9]} 16. Rd8+ {[%clk 0:02:39]} 16...
Kg7 {[%clk 0:02:09.9]} 17. Nd6 {[%clk 0:02:38.9]} 17... Nc5 {[%clk 0:01:46.7]}
18. Nxc8 {[%clk 0:02:25.7]} 18... Rg5 {[%clk 0:00:32]} 19. Bf3 {[%clk
0:02:22.1]} 19... Ne6 {[%clk 0:00:29]} 20. Re8 {[%clk 0:02:20.8]} 20... Nc7
{[%clk 0:00:28.9]} 21. Nd6 {[%clk 0:02:05.8]} 21... Nxe8 {[%clk 0:00:28.5]} 22.
Nxe8+ {[%clk 0:02:06.1]} 22... Kf8 {[%clk 0:00:28.7]} 23. Nf6 {[%clk 0:02:06.3]}
23... Kg7 {[%clk 0:00:27.6]} 24. Ne4 {[%clk 0:02:06.6]} 24... Re5 {[%clk
0:00:27.4]} 25. Rd1 {[%clk 0:02:07]} 25... Re7 {[%clk 0:00:26]} 26. c5 {[%clk
0:02:05.4]} 26... Rae8 {[%clk 0:00:26.5]} 27. Nd6 {[%clk 0:02:05.6]} 27... Rb8
{[%clk 0:00:24.3]} 28. b4 {[%clk 0:02:05.6]} 28... a5 {[%clk 0:00:24.2]} 29. a3
{[%clk 0:02:05.5]} 29... h5 {[%clk 0:00:21]} 30. Nc4 {[%clk 0:02:04.8]} 30...
axb4 {[%clk 0:00:20.5]} 31. axb4 {[%clk 0:02:05.7]} 31... Ra8 {[%clk 0:00:20.8]}
32. Kb2 {[%clk 0:02:04.6]} 32... h4 {[%clk 0:00:19.6]} 33. h3 {[%clk 0:02:04.4]}
33... f5 {[%clk 0:00:19.9]} 34. Nd6 {[%clk 0:02:02.1]} 34... Kf6 {[%clk
0:00:17.3]} 35. b5 {[%clk 0:02:02.3]} 35... cxb5 {[%clk 0:00:16.2]} 36. Bxb7
{[%clk 0:02:01.9]} 36... Ra4 {[%clk 0:00:12.7]} 37. c6 {[%clk 0:02:01.9]} 37...
g5 {[%clk 0:00:05.4]} 38. Kb3 {[%clk 0:02:00.6]} 38... g4 {[%clk 0:00:05]} 39.
Nxb5 {[%clk 0:02:00.7]} 39... Ra5 {[%clk 0:00:04.3]} 40. Kb4 {[%clk 0:02:00.4]}
40... Ra2 {[%clk 0:00:04.9]} 41. c7 {[%clk 0:02:00.4]} 41... Rb2+ {[%clk
0:00:05.2]} 42. Ka5 {[%clk 0:01:59.8]} 42... Rxb5+ {[%clk 0:00:05.8]} 43. Kxb5
{[%clk 0:02:00.2]} 43... Rxc7 {[%clk 0:00:06.6]} 44. Kb6 {[%clk 0:01:59.6]}
44... Rc2 {[%clk 0:00:06.8]} 45. hxg4 {[%clk 0:02:00]} 45... fxg4 {[%clk
0:00:07.5]} 46. Rf1 {[%clk 0:01:59.5]} 46... Kg5 {[%clk 0:00:06.5]} 47. Be4
{[%clk 0:01:59.2]} 47... Re2 {[%clk 0:00:06.2]} 48. Bd3 {[%clk 0:01:58.5]} 48...
Rd2 {[%clk 0:00:06.2]} 49. Bc4 {[%clk 0:01:58.9]} 49... g3 {[%clk 0:00:06]} 50.
f4+ {[%clk 0:01:57.6]} 50... Kf6 {[%clk 0:00:05.4]} 51. Rh1 {[%clk 0:01:55.5]}
51... Rd4 {[%clk 0:00:04.7]} 52. Kc5 {[%clk 0:01:53.8]} 52... Rxf4 {[%clk
0:00:05.2]} 53. Bd5 {[%clk 0:01:54.2]} 53... Ke5 {[%clk 0:00:04.4]} 54. Re1+
{[%clk 0:01:53.5]} 54... Kf5 {[%clk 0:00:04.9]} 55. Kd6 {[%clk 0:01:53.7]} 55...
h3 {[%clk 0:00:05.1]} 56. gxh3 {[%clk 0:01:53.4]} 56... Rf2 {[%clk 0:00:04.8]}
57. Rg1 {[%clk 0:01:52.7]} 57... Kf4 {[%clk 0:00:04.6]} 58. h4 {[%clk
0:01:53.2]} 58... Kg4 {[%clk 0:00:04.8]} 59. Rh1 {[%clk 0:01:53.4]} 59... Rh2
{[%clk 0:00:05.3]} 60. Rxh2 {[%clk 0:01:50.9]} 60... gxh2 {[%clk 0:00:06.2]} 61.
Ke5 {[%clk 0:01:51.3]} 61... Kxh4 {[%clk 0:00:06.7]} 62. Kf4 {[%clk 0:01:51.9]}
62... h1=Q {[%clk 0:00:07.6]} 63. Bxh1 {[%clk 0:01:51.3]} 1/2-1/2

[Event "Early-Titled-Tuesday-Blitz-October-10-2023"]
[Site "Chess.com"]
[Date "2023.10.10"]
[Round "1"]
[White "abc_xyz4744"]
[Black "Byniolus"]
[Result "0-1"]
[WhiteElo "2403"]
[BlackElo "2712"]
[TimeControl "180+1"]
[EndTime "8:06:46 PDT"]
[Termination "Byniolus won by checkmate"]

1. e4 {[%clk 0:02:58.1]} 1... d6 {[%clk 0:03:00.2]} 2. d4 {[%clk 0:02:54.3]}
2... Nf6 {[%clk 0:03:00.6]} 3. Nc3 {[%clk 0:02:50.4]} 3... c6 {[%clk 0:03:00.8]}
4. Nf3 {[%clk 0:02:41.7]} 4... Bg4 {[%clk 0:03:00.6]} 5. Bc4 {[%clk 0:02:40.1]}
5... e6 {[%clk 0:03:00.5]} 6. Bb3 {[%clk 0:02:36.3]} 6... d5 {[%clk 0:03:00.7]}
7. e5 {[%clk 0:02:36.2]} 7... Nfd7 {[%clk 0:03:00.8]} 8. h3 {[%clk 0:02:36.8]}
8... Bh5 {[%clk 0:02:59.4]} 9. Be3 {[%clk 0:02:36.2]} 9... c5 {[%clk 0:02:59.5]}
10. dxc5 {[%clk 0:02:35.6]} 10... Nc6 {[%clk 0:02:59.9]} 11. g4 {[%clk 0:02:34]}
11... Bg6 {[%clk 0:02:59.9]} 12. Ba4 {[%clk 0:02:31.9]} 12... Bxc5 {[%clk
0:02:55.1]} 13. Bxc6 {[%clk 0:02:24]} 13... bxc6 {[%clk 0:02:54.1]} 14. Nd4
{[%clk 0:02:24.6]} 14... Rc8 {[%clk 0:02:35.8]} 15. f4 {[%clk 0:02:18.4]} 15...
h6 {[%clk 0:02:04.9]} 16. Qe2 {[%clk 0:02:11.5]} 16... Bh7 {[%clk 0:01:58.9]}
17. O-O-O {[%clk 0:02:06.5]} 17... Bb4 {[%clk 0:01:58]} 18. f5 {[%clk 0:02:00]}
18... Nc5 {[%clk 0:01:45.1]} 19. Nb1 {[%clk 0:01:36.2]} 19... Ne4 {[%clk
0:01:30.8]} 20. fxe6 {[%clk 0:01:22.9]} 20... O-O {[%clk 0:01:30.1]} 21. exf7+
{[%clk 0:01:19.8]} 21... Rxf7 {[%clk 0:01:31]} 22. Qa6 {[%clk 0:01:14]} 22...
Qe8 {[%clk 0:01:02.4]} 23. e6 {[%clk 0:01:04.4]} 23... Rf8 {[%clk 0:00:58.6]}
24. Qxa7 {[%clk 0:00:58.5]} 24... c5 {[%clk 0:00:40]} 25. Nf5 {[%clk 0:00:53.5]}
25... Bxf5 {[%clk 0:00:38.1]} 26. gxf5 {[%clk 0:00:54.4]} 26... Rxf5 {[%clk
0:00:38.1]} 27. Rhg1 {[%clk 0:00:53.4]} 27... g5 {[%clk 0:00:22.9]} 28. a3
{[%clk 0:00:51.9]} 28... d4 {[%clk 0:00:17.7]} 29. Bxg5 {[%clk 0:00:44.3]} 29...
hxg5 {[%clk 0:00:16]} 30. axb4 {[%clk 0:00:44.5]} 30... cxb4 {[%clk 0:00:13.8]}
31. Qxd4 {[%clk 0:00:44.6]} 31... Qxe6 {[%clk 0:00:12.7]} 32. Rge1 {[%clk
0:00:41.6]} 32... Nc5 {[%clk 0:00:03.3]} 33. Rxe6 {[%clk 0:00:41.1]} 33... Nb3#
{[%clk 0:00:03.5]} 0-1

[Event "Early-Titled-Tuesday-Blitz-October-10-2023"]
[Site "Chess.com"]
[Date "2023.10.10"]
[Round "1"]
[White "Real_taiatai"]
[Black "marcodobrikov"]
[Result "0-1"]
[WhiteElo "2445"]
[BlackElo "2770"]
[TimeControl "180+1"]
[EndTime "8:06:49 PDT"]
[Termination "marcodobrikov won by resignation"]

1. d4 {[%clk 0:02:58.1]} 1... Nf6 {[%clk 0:02:59.3]} 2. c4 {[%clk 0:02:58.6]}
2... g6 {[%clk 0:02:57.2]} 3. Nc3 {[%clk 0:02:56.3]} 3... Bg7 {[%clk 0:02:58.1]}
4. e4 {[%clk 0:02:56.6]} 4... d6 {[%clk 0:02:58.9]} 5. h3 {[%clk 0:02:54.9]}
5... O-O {[%clk 0:02:59.2]} 6. Be2 {[%clk 0:02:47.1]} 6... e5 {[%clk 0:02:59.6]}
7. d5 {[%clk 0:02:46.9]} 7... a5 {[%clk 0:02:59.8]} 8. g4 {[%clk 0:02:46.6]}
8... Na6 {[%clk 0:03:00.1]} 9. Be3 {[%clk 0:02:44]} 9... Nc5 {[%clk 0:03:00.3]}
10. Qc2 {[%clk 0:02:42.4]} 10... c6 {[%clk 0:02:56.4]} 11. Nf3 {[%clk
0:02:41.6]} 11... cxd5 {[%clk 0:02:56.8]} 12. cxd5 {[%clk 0:02:41.1]} 12... Ne8
{[%clk 0:02:53.3]} 13. g5 {[%clk 0:02:40.5]} 13... Bd7 {[%clk 0:02:51.3]} 14.
Nd2 {[%clk 0:02:37.9]} 14... Rc8 {[%clk 0:02:41.6]} 15. h4 {[%clk 0:02:25.7]}
15... Nc7 {[%clk 0:02:25.8]} 16. h5 {[%clk 0:02:12.6]} 16... b5 {[%clk
0:02:24.1]} 17. hxg6 {[%clk 0:02:12.7]} 17... fxg6 {[%clk 0:02:23.3]} 18. Bxc5
{[%clk 0:01:37.6]} 18... dxc5 {[%clk 0:02:24.2]} 19. d6 {[%clk 0:01:33.8]} 19...
Ne6 {[%clk 0:02:22]} 20. Bxb5 {[%clk 0:01:30.6]} 20... Nd4 {[%clk 0:02:19.4]}
21. Bc4+ {[%clk 0:01:30.2]} 21... Kh8 {[%clk 0:02:18.2]} 22. Qd3 {[%clk
0:01:24.1]} 22... Qxg5 {[%clk 0:02:15.7]} 23. O-O-O {[%clk 0:00:52.2]} 23...
Rxf2 {[%clk 0:02:14.4]} 24. Rdg1 {[%clk 0:00:36.8]} 24... Rg2 {[%clk 0:02:04.7]}
25. Rxg2 {[%clk 0:00:20.5]} 25... Qxg2 {[%clk 0:02:05.6]} 26. Rf1 {[%clk
0:00:20.4]} 26... Rf8 {[%clk 0:02:02.4]} 27. Rxf8+ {[%clk 0:00:19.1]} 27... Bxf8
{[%clk 0:02:03.3]} 28. Nb3 {[%clk 0:00:16.6]} 28... Bxd6 {[%clk 0:02:00.7]} 29.
Nxa5 {[%clk 0:00:16.8]} 29... Be7 {[%clk 0:01:53.4]} 30. Nb3 {[%clk 0:00:15.9]}
30... Bg5+ {[%clk 0:01:53.8]} 31. Kb1 {[%clk 0:00:15.1]} 31... Qg1+ {[%clk
0:01:45]} 32. Qd1 {[%clk 0:00:14]} 32... Qxd1+ {[%clk 0:01:43]} 33. Nxd1 {[%clk
0:00:14.9]} 33... Nxb3 {[%clk 0:01:36]} 34. Bxb3 {[%clk 0:00:15.7]} 34... h5
{[%clk 0:01:36.5]} 35. a4 {[%clk 0:00:13.9]} 35... h4 {[%clk 0:01:36.1]} 36. Nf2
{[%clk 0:00:14.5]} 36... Be3 {[%clk 0:01:35.9]} 37. Nh1 {[%clk 0:00:14.4]} 37...
g5 {[%clk 0:01:33.7]} 38. a5 {[%clk 0:00:14.8]} 38... g4 {[%clk 0:01:33.5]} 39.
a6 {[%clk 0:00:15.3]} 39... c4 {[%clk 0:01:33.9]} 40. Bxc4 {[%clk 0:00:14.2]}
40... g3 {[%clk 0:01:33]} 41. Bf1 {[%clk 0:00:14.6]} 41... Bc6 {[%clk
0:01:12.5]} 42. Bg2 {[%clk 0:00:13.8]} 42... h3 {[%clk 0:01:12.2]} 43. Bxh3
{[%clk 0:00:14.4]} 43... Bxe4+ {[%clk 0:01:12.3]} 44. Ka2 {[%clk 0:00:14.9]}
44... Bxh1 {[%clk 0:01:13]} 45. b4 {[%clk 0:00:14.4]} 45... g2 {[%clk
0:01:12.7]} 46. Bxg2 {[%clk 0:00:14.9]} 46... Bxg2 {[%clk 0:01:13.6]} 47. Kb3
{[%clk 0:00:15]} 47... Bf1 {[%clk 0:01:12.5]} 48. Kc3 {[%clk 0:00:13.9]} 48...
Bxa6 {[%clk 0:01:12.2]} 0-1

[Event "Early-Titled-Tuesday-Blitz-October-10-2023"]
[Site "Chess.com"]
[Date "2023.10.10"]
[Round "1"]
[White "CheckThis4"]
[Black "BashirliSaadat"]
[Result "1-0"]
[WhiteElo "2702"]
[BlackElo "2397"]
[TimeControl "180+1"]
[EndTime "8:06:49 PDT"]
[Termination "CheckThis4 won by checkmate"]

1. e4 {[%clk 0:03:00.9]} 1... c6 {[%clk 0:02:58.6]} 2. Nf3 {[%clk 0:02:56.1]}
2... d5 {[%clk 0:02:58.4]} 3. Nc3 {[%clk 0:02:56.7]} 3... dxe4 {[%clk
0:02:56.8]} 4. Nxe4 {[%clk 0:02:56]} 4... Nf6 {[%clk 0:02:57.3]} 5. Qe2 {[%clk
0:02:51.2]} 5... e6 {[%clk 0:02:52]} 6. Nxf6+ {[%clk 0:02:46.1]} 6... Qxf6
{[%clk 0:02:51.3]} 7. d4 {[%clk 0:02:46.6]} 7... h6 {[%clk 0:02:42.6]} 8. g3
{[%clk 0:02:41.3]} 8... Nd7 {[%clk 0:02:39.9]} 9. Bg2 {[%clk 0:02:40]} 9... Nb6
{[%clk 0:02:39.1]} 10. Bf4 {[%clk 0:02:35.3]} 10... Nd5 {[%clk 0:02:35.6]} 11.
Be5 {[%clk 0:02:34.3]} 11... Qd8 {[%clk 0:02:32.4]} 12. O-O {[%clk 0:02:29.8]}
12... f6 {[%clk 0:02:28.2]} 13. c4 {[%clk 0:02:29.4]} 13... Ne7 {[%clk
0:02:12.4]} 14. Bf4 {[%clk 0:02:26.1]} 14... Ng6 {[%clk 0:02:12.8]} 15. Nh4
{[%clk 0:02:08.9]} 15... Nxf4 {[%clk 0:02:10.3]} 16. gxf4 {[%clk 0:02:07.5]}
16... Kf7 {[%clk 0:01:52]} 17. d5 {[%clk 0:01:58.3]} 17... cxd5 {[%clk
0:01:45.1]} 18. cxd5 {[%clk 0:01:57.9]} 18... exd5 {[%clk 0:01:44.9]} 19. Qh5+
{[%clk 0:01:55.8]} 19... Ke6 {[%clk 0:01:27.2]} 20. Rfe1+ {[%clk 0:01:52.4]}
20... Kd7 {[%clk 0:01:24.7]} 21. Qf7+ {[%clk 0:01:41.8]} 21... Kc6 {[%clk
0:01:16.9]} 22. Rac1+ {[%clk 0:01:37.7]} 22... Kb6 {[%clk 0:01:15.1]} 23. Ng6
{[%clk 0:01:33.7]} 23... Bb4 {[%clk 0:01:06.6]} 24. Nxh8 {[%clk 0:01:13]} 24...
Bxe1 {[%clk 0:01:04.6]} 25. Rxe1 {[%clk 0:01:12.9]} 25... Qxh8 {[%clk
0:00:58.4]} 26. Qxd5 {[%clk 0:01:11.2]} 26... Qf8 {[%clk 0:00:51.4]} 27. b4
{[%clk 0:01:05.5]} 27... Qxb4 {[%clk 0:00:46]} 28. Qd8+ {[%clk 0:00:54.8]} 28...
Ka6 {[%clk 0:00:37.9]} 29. Rc1 {[%clk 0:00:49.6]} 29... Qxf4 {[%clk 0:00:23.8]}
30. Rc3 {[%clk 0:00:23.9]} 30... Qb4 {[%clk 0:00:18.5]} 31. Bf1+ {[%clk
0:00:20.7]} 31... b5 {[%clk 0:00:17.1]} 32. Rc6+ {[%clk 0:00:20.1]} 32... Kb7
{[%clk 0:00:15.5]} 33. Qc7# {[%clk 0:00:19.9]} 1-0

[Event "Early-Titled-Tuesday-Blitz-October-10-2023"]
[Site "Chess.com"]
[Date "2023.10.10"]
[Round "1"]
[White "Kielinkei"]
[Black "Grandmaster1369"]
[Result "0-1"]
[WhiteElo "2454"]
[BlackElo "2807"]
[TimeControl "180+1"]
[EndTime "8:06:50 PDT"]
[Termination "Grandmaster1369 won by resignation"]

1. Nf3 {[%clk 0:03:00.9]} 1... c5 {[%clk 0:02:59.9]} 2. g3 {[%clk 0:03:00.1]}
2... g6 {[%clk 0:03:00.3]} 3. Bg2 {[%clk 0:03:00.3]} 3... Bg7 {[%clk 0:03:00.8]}
4. O-O {[%clk 0:02:58]} 4... Nc6 {[%clk 0:03:01.3]} 5. e4 {[%clk 0:02:57.6]}
5... e6 {[%clk 0:03:00.4]} 6. c3 {[%clk 0:02:56.2]} 6... d5 {[%clk 0:02:50.4]}
7. exd5 {[%clk 0:02:57.1]} 7... exd5 {[%clk 0:02:50.9]} 8. Re1+ {[%clk
0:02:53.3]} 8... Nge7 {[%clk 0:02:51.2]} 9. d4 {[%clk 0:02:52.7]} 9... cxd4
{[%clk 0:02:51.7]} 10. Nxd4 {[%clk 0:02:51.1]} 10... Nxd4 {[%clk 0:02:52]} 11.
cxd4 {[%clk 0:02:50.8]} 11... O-O {[%clk 0:02:52.4]} 12. Nc3 {[%clk 0:02:46.2]}
12... Be6 {[%clk 0:02:48.6]} 13. Bg5 {[%clk 0:02:34.2]} 13... Re8 {[%clk
0:02:48.5]} 14. Bxe7 {[%clk 0:02:17.1]} 14... Rxe7 {[%clk 0:02:48.3]} 15. Bxd5
{[%clk 0:02:16.5]} 15... Bxd5 {[%clk 0:02:41.8]} 16. Rxe7 {[%clk 0:02:16.6]}
16... Qxe7 {[%clk 0:02:39.9]} 17. Nxd5 {[%clk 0:02:16.7]} 17... Qd6 {[%clk
0:02:40.5]} 18. Nc3 {[%clk 0:02:14.1]} 18... Qxd4 {[%clk 0:02:36.7]} 19. Qxd4
{[%clk 0:02:03.3]} 19... Bxd4 {[%clk 0:02:37.6]} 20. Rd1 {[%clk 0:01:36.6]}
20... Bxc3 {[%clk 0:02:37.5]} 21. bxc3 {[%clk 0:01:36.7]} 21... Rc8 {[%clk
0:02:37.9]} 22. Rd7 {[%clk 0:01:27.6]} 22... Rxc3 {[%clk 0:02:37.8]} 23. Rxb7
{[%clk 0:01:28.2]} 23... Ra3 {[%clk 0:02:38.4]} 24. Rb2 {[%clk 0:01:26]} 24...
g5 {[%clk 0:02:36.8]} 25. h3 {[%clk 0:01:22]} 25... Kg7 {[%clk 0:02:30.8]} 26.
Kf1 {[%clk 0:01:20.7]} 26... h5 {[%clk 0:02:30.6]} 27. Ke2 {[%clk 0:00:54.1]}
27... Kg6 {[%clk 0:02:29.8]} 28. Rc2 {[%clk 0:00:44.6]} 28... f6 {[%clk
0:02:28.5]} 29. Rb2 {[%clk 0:00:43.5]} 29... h4 {[%clk 0:02:20.1]} 30. gxh4
{[%clk 0:00:42.7]} 30... gxh4 {[%clk 0:02:21]} 31. f3 {[%clk 0:00:42.9]} 31...
Kg5 {[%clk 0:02:20.1]} 32. Kf2 {[%clk 0:00:39]} 32... Ra4 {[%clk 0:02:20.6]} 33.
Rc2 {[%clk 0:00:31.8]} 33... f5 {[%clk 0:02:15.7]} 34. Rb2 {[%clk 0:00:30.1]}
34... Kf4 {[%clk 0:02:12.9]} 35. Rc2 {[%clk 0:00:29.3]} 35... a5 {[%clk
0:02:13.1]} 36. Rb2 {[%clk 0:00:24.9]} 36... Ra3 {[%clk 0:02:10]} 37. Rc2 {[%clk
0:00:16.7]} 37... Rxf3+ {[%clk 0:02:10.3]} 38. Kg2 {[%clk 0:00:17.3]} 38... Rg3+
{[%clk 0:02:09.3]} 39. Kh2 {[%clk 0:00:16]} 39... Ra3 {[%clk 0:02:10]} 40. Kg2
{[%clk 0:00:13.3]} 40... Ke3 {[%clk 0:02:07.1]} 41. Rf2 {[%clk 0:00:13.4]} 41...
Ke4 {[%clk 0:02:03.2]} 42. Re2+ {[%clk 0:00:13.4]} 42... Re3 {[%clk 0:02:01]}
43. Rc2 {[%clk 0:00:11.8]} 43... Rg3+ {[%clk 0:02:01.4]} 44. Kh2 {[%clk
0:00:10.8]} 44... Ra3 {[%clk 0:02:00.9]} 45. Kg2 {[%clk 0:00:10.5]} 45... f4
{[%clk 0:01:59.3]} 46. Re2+ {[%clk 0:00:11]} 46... Re3 {[%clk 0:01:57.7]} 47.
Rb2 {[%clk 0:00:09.7]} 47... Rg3+ {[%clk 0:01:58]} 48. Kh2 {[%clk 0:00:07.5]}
48... Ra3 {[%clk 0:01:58.9]} 49. Kg2 {[%clk 0:00:07.2]} 49... Rc3 {[%clk
0:01:46.9]} 50. Rd2 {[%clk 0:00:06]} 50... a4 {[%clk 0:01:46]} 51. Rb2 {[%clk
0:00:04.7]} 51... a3 {[%clk 0:01:43]} 52. Rd2 {[%clk 0:00:01.9]} 52... Ke3
{[%clk 0:01:41]} 53. Rf2 {[%clk 0:00:02.2]} 53... Ke4 {[%clk 0:01:35.6]} 54.
Re2+ {[%clk 0:00:02.6]} 54... Kd3 {[%clk 0:01:29]} 55. Rf2 {[%clk 0:00:02.7]}
55... Rc2 {[%clk 0:01:29.5]} 56. Rxc2 {[%clk 0:00:01.6]} 56... Kxc2 {[%clk
0:01:30.4]} 0-1

[Event "Early-Titled-Tuesday-Blitz-October-10-2023"]
[Site "Chess.com"]
[Date "2023.10.10"]
[Round "1"]
[White "JiiHart"]
[Black "Savagelittlemole"]
[Result "0-1"]
[WhiteElo "2188"]
[BlackElo "2573"]
[TimeControl "180+1"]
[EndTime "8:06:55 PDT"]
[Termination "Savagelittlemole won on time"]

1. e4 {[%clk 0:02:59.1]} 1... c5 {[%clk 0:02:59.1]} 2. c3 {[%clk 0:02:59.1]}
2... g6 {[%clk 0:02:57.1]} 3. d4 {[%clk 0:02:58.3]} 3... Bg7 {[%clk 0:02:56.7]}
4. Be3 {[%clk 0:02:53]} 4... cxd4 {[%clk 0:02:56]} 5. cxd4 {[%clk 0:02:52.7]}
5... Nf6 {[%clk 0:02:56.1]} 6. f3 {[%clk 0:02:51.7]} 6... O-O {[%clk 0:02:55.7]}
7. Nc3 {[%clk 0:02:49.3]} 7... d6 {[%clk 0:02:55.7]} 8. Qd2 {[%clk 0:02:48.2]}
8... a6 {[%clk 0:02:54.6]} 9. a4 {[%clk 0:02:43.8]} 9... Nc6 {[%clk 0:02:50.4]}
10. h4 {[%clk 0:02:29]} 10... Rb8 {[%clk 0:02:40.3]} 11. h5 {[%clk 0:02:26.5]}
11... Nxh5 {[%clk 0:02:35.5]} 12. Nge2 {[%clk 0:02:03.7]} 12... e5 {[%clk
0:02:31.5]} 13. d5 {[%clk 0:01:51]} 13... Nd4 {[%clk 0:02:30.9]} 14. Nxd4 {[%clk
0:01:00.1]} 14... exd4 {[%clk 0:02:29.9]} 15. Bxd4 {[%clk 0:00:59.1]} 15... Bxd4
{[%clk 0:02:28.9]} 16. Qxd4 {[%clk 0:00:58.8]} 16... Qg5 {[%clk 0:02:24.8]} 17.
Qd2 {[%clk 0:00:37.4]} 17... Qg3+ {[%clk 0:02:09.8]} 18. Qf2 {[%clk 0:00:36.4]}
18... Bd7 {[%clk 0:01:59]} 19. Be2 {[%clk 0:00:23.8]} 19... b5 {[%clk
0:01:54.7]} 20. axb5 {[%clk 0:00:19.3]} 20... Bxb5 {[%clk 0:01:52.2]} 21. Nxb5
{[%clk 0:00:17.8]} 21... axb5 {[%clk 0:01:51.7]} 22. Ra6 {[%clk 0:00:16.3]}
22... Ra8 {[%clk 0:01:36.4]} 23. Bxb5 {[%clk 0:00:14.1]} 23... Rxa6 {[%clk
0:01:36.4]} 24. Bxa6 {[%clk 0:00:14.4]} 24... Ra8 {[%clk 0:01:36.5]} 25. Qxg3
{[%clk 0:00:11.9]} 25... Nxg3 {[%clk 0:01:36.2]} 26. Rh3 {[%clk 0:00:12.3]}
26... Rxa6 {[%clk 0:01:29.7]} 27. Rxg3 {[%clk 0:00:11.2]} 27... Rb6 {[%clk
0:01:29.9]} 28. Ke2 {[%clk 0:00:10.7]} 28... Rxb2+ {[%clk 0:01:29.9]} 29. Ke3
{[%clk 0:00:10.9]} 29... Kf8 {[%clk 0:01:28.1]} 30. Kf4 {[%clk 0:00:11.2]} 30...
Ke7 {[%clk 0:01:23.8]} 31. Kg5 {[%clk 0:00:11.4]} 31... Rb1 {[%clk 0:01:22]} 32.
Rh3 {[%clk 0:00:10.6]} 32... h5 {[%clk 0:01:22.2]} 33. g4 {[%clk 0:00:09.4]}
33... hxg4 {[%clk 0:01:21.4]} 34. Kxg4 {[%clk 0:00:09.7]} 34... Kf6 {[%clk
0:01:18.2]} 35. Rh7 {[%clk 0:00:07.9]} 35... Rg1+ {[%clk 0:01:17.5]} 36. Kf4
{[%clk 0:00:07.6]} 36... g5+ {[%clk 0:01:16.9]} 37. Ke3 {[%clk 0:00:07.6]} 37...
Ra1 {[%clk 0:01:12.2]} 38. Kf2 {[%clk 0:00:07.3]} 38... Kg6 {[%clk 0:01:06.1]}
39. Rh8 {[%clk 0:00:06.6]} 39... f5 {[%clk 0:01:04.2]} 40. exf5+ {[%clk
0:00:06.2]} 40... Kxf5 {[%clk 0:01:05.1]} 41. Rd8 {[%clk 0:00:04.7]} 41... Ra6
{[%clk 0:00:58.7]} 42. Kg3 {[%clk 0:00:03]} 42... Rb6 {[%clk 0:00:58.1]} 43.
Rf8+ {[%clk 0:00:01.5]} 43... Kg6 {[%clk 0:00:56.5]} 44. Rg8+ {[%clk 0:00:01.4]}
44... Kf6 {[%clk 0:00:55.9]} 45. Rf8+ {[%clk 0:00:01.3]} 45... Kg7 {[%clk
0:00:55.3]} 0-1